bitfinex/quotes_ETHUSD_20260213
["timestamp","ask_amount","ask_price","bid_price","bid_amount"]
[1770996003963,1.23719503,2020.7,2019.5,4.95161761]
[1770996004152,1.23719503,2020.7,2019.6,0.945]
[1770996004332,4.94830649,2020.9,2019.6,0.945]
[1770996004860,1.23707259,2020.9,2019.6,0.945]
[1770996005032,1.204,2021.0,2019.6,0.945]
[1770996005233,1.204,2021.0,2019.9,10.51800786]
[1770996005234,0.002,2021.0,2019.9,10.51800786]
[1770996005463,0.002,2021.2,2020.0,2.93524562]
[1770996005668,0.002,2021.2,2020.0,1.23762376]
[1770996006567,0.002,2022.0,2020.6,8.948823]
[1770996006870,0.002,2022.5,2021.0,1.69762186]
[1770996007060,0.002,2022.5,2022.1,0.004]
[1770996007061,1.23810322,2022.5,2022.1,0.004]
[1770996007259,1.23810322,2022.5,2021.3,9.71903824]
[1770996007260,0.002,2022.5,2022.0,0.946]
[1770996007462,1.23554413,2023.4,2022.1,1.23633846]
[1770996007639,2.86700054,2023.4,2022.0,1.23635551]
[1770996007837,10.544903,2023.0,2021.8,0.892]
[1770996008050,1.63345641,2023.1,2021.8,2.12850379]
[1770996008051,1.63145641,2022.8,2021.8,2.12850379]
[1770996008248,2.57786,2022.8,2021.8,0.892]
[1770996008455,2.093,2022.9,2021.8,2.12850937]
[1770996008671,0.002,2023.1,2021.9,9.914872]
[1770996008890,0.002,2023.1,2022.0,1.69762186]
[1770996009039,0.002,2023.1,2022.1,1.838]
[1770996009244,0.002,2023.1,2022.1,0.946]
[1770996009444,0.002,2023.1,2022.2,1.23627732]
[1770996009862,0.002,2023.1,2022.3,0.945]
[1770996010683,1.63345641,2023.1,2022.0,0.892]
[1770996010982,1.63345641,2023.1,2022.0,2.12837877]
[1770996011145,1.63145641,2022.9,2021.8,0.945]
[1770996011344,1.63145641,2022.9,2021.3,2.12882727]
[1770996011345,8.69102923,2022.6,2021.3,2.12882727]
[1770996011546,1.63145641,2022.4,2021.3,1.837]
[1770996012345,1.63145641,2022.4,2021.3,3.07381234]
[1770996012647,0.892,2022.5,2021.3,3.07381234]
[1770996013151,9.452619,2022.4,2021.1,0.945]
[1770996013347,15.02163332,2022.2,2020.5,0.33107032]
[1770996013555,15.02163332,2022.2,2020.6,1.836]
[1770996013556,10.562735,2022.0,2020.6,1.836]
[1770996013762,1.199,2022.0,2020.6,1.836]
[1770996013960,21.637549,2021.7,2020.6,1.836]
[1770996014186,17.60436,2021.7,2020.6,1.836]
[1770996014381,12.29936,2021.7,2020.6,1.836]
[1770996014752,1.199,2022.0,2020.6,1.836]
[1770996014949,1.23627732,2022.2,2020.6,1.836]
[1770996015150,2.86773373,2022.2,2020.4,2.93500059]
[1770996015396,18.92898101,2022.0,2020.6,1.23725626]
[1770996015680,2.86785601,2022.0,2020.6,1.23725626]
[1770996016448,15.93021941,2021.9,2020.6,1.23725626]
[1770996016647,1.63145641,2021.9,2020.6,1.23725626]
[1770996016945,1.199,2021.8,2020.6,1.23725626]
[1770996017389,4.94489143,2022.3,2020.6,2.93487812]
[1770996017585,4.94365621,2022.8,2020.9,12.839083]
[1770996017880,4.94365621,2022.8,2021.0,1.836]
[1770996017881,1.63145641,2022.4,2021.0,1.836]
[1770996018178,16.64261841,2022.3,2020.6,1.23725626]
[1770996018347,16.64261841,2022.3,2020.6,1.836]
[1770996018348,7.45974441,2022.0,2020.6,1.836]
[1770996018547,7.45974441,2022.0,2020.2,0.33107032]
[1770996018548,1.63145641,2021.7,2020.3,2.1824001]
[1770996018769,1.2,2021.6,2020.3,2.1824001]
[1770996018967,1.2,2021.6,2020.3,1.2374001]
[1770996019262,2.83145641,2021.6,2020.3,0.945]
[1770996019466,1.23670541,2021.5,2020.4,1.23737873]
[1770996019686,1.23670541,2021.5,2020.3,2.18239701]
[1770996020586,1.63145641,2021.3,2020.2,0.001]
[1770996020757,14.190233,2021.1,2020.2,0.001]
[1770996020963,1.2,2021.1,2020.2,0.001]
[1770996021163,1.23670541,2021.5,2020.2,1.23849563]
[1770996021384,1.201,2021.4,2020.2,1.23849563]
[1770996021706,2.43779544,2021.4,2020.2,0.001]
[1770996022385,23.89501641,2021.3,2020.2,0.001]
[1770996022582,1.63145641,2021.3,2020.2,0.001]
[1770996022878,2.43779544,2021.4,2020.2,0.001]
[1770996023459,14.69248041,2020.9,2019.1,0.001]
[1770996023666,3.099283,2020.7,2019.5,1.23793018]
[1770996023848,3.099283,2020.7,2019.4,4.95272072]
[1770996023849,3.099283,2020.7,2019.4,1.23895108]
[1770996024059,2.83345641,2020.8,2019.4,1.23895108]
[1770996024270,4.14038841,2020.7,2019.4,1.23895108]
[1770996024470,9.150429,2020.6,2019.4,1.23895108]
[1770996024670,7.046077,2020.6,2019.4,1.23895108]
[1770996025085,5.937077,2020.6,2019.4,1.23895108]
[1770996025382,1.63145641,2020.7,2019.4,0.001]
[1770996025383,1.73385641,2020.1,2019.4,0.001]
[1770996025564,3.49804983,2020.0,2019.4,0.001]
[1770996025766,2.43962376,2020.0,2019.4,0.001]
[1770996026464,1.23762376,2020.0,2019.4,0.001]
[1770996027486,2.4406093,2020.1,2019.4,0.001]
[1770996028274,1.203,2020.1,2019.4,0.001]
[1770996028482,10.360237,2020.7,2019.4,0.001]
[1770996028683,1.204,2020.4,2019.4,0.001]
[1770996028883,9.936345,2020.6,2019.4,0.001]
[1770996029193,1.204,2020.5,2019.4,0.001]
[1770996029614,1.23737873,2020.4,2019.4,0.001]
[1770996029795,0.892,2020.7,2019.5,0.943]
[1770996029995,2.12920829,2020.7,2019.5,0.943]
[1770996030616,2.12920829,2020.7,2019.4,0.944]
[1770996030812,11.109573,2020.6,2019.4,0.944]
[1770996030982,1.204,2020.5,2019.4,0.944]
[1770996031176,2.78801765,2020.5,2019.4,0.944]
[1770996031376,7.565438,2020.3,2019.4,0.001]
[1770996031605,1.23750123,2020.2,2019.4,0.001]
[1770996032910,1.205,2020.1,2019.6,0.001]
[1770996033274,1.205,2020.1,2019.4,0.001]
[1770996033493,1.23762376,2020.0,2019.4,0.001]
[1770996033711,11.20786093,2020.9,2019.4,0.001]
[1770996033712,1.23725626,2020.6,2019.4,0.001]
[1770996034026,2.44225626,2020.6,2019.4,0.001]
[1770996034320,1.58401765,2020.5,2019.4,0.001]
[1770996034476,13.98357365,2020.4,2019.4,0.001]
[1770996034675,3.571555,2020.3,2019.4,0.001]
[1770996034874,1.205,2020.2,2019.4,0.001]
[1770996035605,1.23756249,2020.1,2019.4,0.001]
[1770996035807,2.363965,2020.0,2019.4,0.001]
[1770996036826,7.73926763,2020.2,2019.4,0.001]
[1770996036827,1.23753904,2020.2,2019.4,0.001]
[1770996037478,4.94997793,2020.3,2019.4,0.001]
[1770996037914,6.56234877,2020.3,2019.4,0.001]
[1770996038118,9.482163,2020.2,2019.4,0.001]
[1770996038320,5.428163,2020.2,2019.4,0.001]
[1770996038473,4.94997793,2020.3,2019.4,0.001]
[1770996038979,6.15502903,2020.6,2019.4,0.001]
[1770996039510,4.70697,2020.3,2019.4,0.001]
[1770996039689,2.44350123,2020.2,2019.4,0.001]
[1770996039888,13.35242084,2020.1,2019.4,0.001]
[1770996040092,2.44350123,2020.2,2019.4,0.001]
[1770996040490,1.206,2020.1,2019.4,0.001]
[1770996041619,1.2371338,2020.8,2019.4,0.001]
[1770996041819,5.61257097,2021.2,2019.6,1.58437363]
[1770996042002,5.61257097,2021.2,2019.5,10.34703321]
[1770996042003,1.206,2021.2,2019.7,2.52137363]
[1770996042184,4.09284624,2021.6,2020.0,1.58437363]
[1770996042380,1.23664424,2021.6,2020.1,0.892]
[1770996042603,18.895239,2021.5,2020.1,0.892]
[1770996042810,1.23664424,2021.6,2020.1,0.892]
[1770996043411,4.94622734,2021.8,2020.2,1.58437363]
[1770996043711,1.23670541,2021.5,2020.3,1.23743998]
[1770996043911,1.23652191,2021.8,2020.3,2.82181361]
[1770996044118,0.002,2021.9,2020.4,1.58437363]
[1770996044320,0.002,2022.3,2021.0,24.730567]
[1770996044493,0.002,2022.3,2020.8,9.71131493]
[1770996044494,0.002,2022.5,2021.3,6.32360163]
[1770996044687,0.002,2022.5,2021.1,1.25468579]
[1770996044688,1.61237084,2023.8,2022.0,16.626651]
[1770996044879,6.124116,2024.0,2022.3,1.58437363]
[1770996045081,0.003,2024.2,2022.4,1.77122987]
[1770996045280,1.23450931,2025.1,2023.3,8.75948]
[1770996045512,1.23450931,2025.1,2023.0,9.71131493]
[1770996045513,1.23450931,2025.1,2023.5,1.58437363]
[1770996045714,1.23450931,2025.1,2023.6,1.59810781]
[1770996046321,2.86054,2025.0,2023.4,1.23552301]
[1770996046481,2.86054,2025.0,2023.3,1.828]
[1770996046482,21.884584,2024.8,2023.3,1.828]
[1770996046687,1.61237084,2024.5,2022.7,1.828]
[1770996046932,2.096,2024.4,2022.7,1.828]
[1770996047230,1.61237084,2024.3,2022.6,1.23603282]
[1770996047434,1.61237084,2024.3,2022.7,1.827]
[1770996047641,1.23505582,2024.2,2022.7,3.06294358]
[1770996047836,1.23505582,2024.2,2022.7,1.827]
[1770996047837,18.956452,2024.1,2022.7,1.827]
[1770996048024,17.331606,2024.1,2022.7,1.827]
[1770996048240,2.45647,2024.1,2022.7,3.06295638]
[1770996048470,2.45647,2024.1,2022.7,3.06296691]
[1770996048838,1.23505582,2024.2,2022.7,3.06296691]
[1770996049041,1.23505582,2024.2,2022.7,0.892]
[1770996049042,1.61237084,2024.0,2022.7,0.892]
[1770996049236,2.582,2023.7,2022.1,0.935]
[1770996049438,7.449288,2023.4,2021.8,0.935]
[1770996049657,7.449288,2023.4,2021.9,1.23646075]
[1770996049658,1.23560519,2023.3,2021.9,1.23646075]
[1770996050185,1.23548307,2023.5,2021.9,1.23646075]
[1770996050460,1.61237084,2023.7,2021.9,1.23646075]
[1770996050667,19.04167584,2023.6,2021.9,1.23646075]
[1770996050835,17.67247784,2023.4,2021.8,1.825]
[1770996051036,0.1024,2023.7,2021.8,1.825]
[1770996051037,1.61237084,2023.2,2021.8,1.825]
[1770996051236,2.095,2023.3,2021.8,1.825]
[1770996051464,8.016223,2023.2,2021.8,1.825]
[1770996051665,1.23554413,2023.4,2021.9,1.23646075]
[1770996051869,1.23554413,2023.4,2021.9,2.82083438]
[1770996052070,1.23554413,2023.4,2022.0,2.729421]
[1770996052370,0.891,2023.6,2022.3,3.54228]
[1770996052555,0.891,2023.6,2022.3,1.58437363]
[1770996052865,1.23517786,2024.0,2022.3,1.91684224]
[1770996053071,1.23517786,2024.0,2022.4,9.15133463]
[1770996053235,6.14453272,2024.1,2022.7,12.10086963]
[1770996053236,2.43911988,2024.1,2022.7,12.10086963]
[1770996053436,1.2348728,2024.5,2022.9,1.77122987]
[1770996053641,1.2345679,2025.0,2023.3,1.58437363]
[1770996053837,3.05731848,2026.2,2024.0,1.58437363]
[1770996053838,1.61237084,2026.1,2024.0,1.58437363]
[1770996054140,4.93648117,2025.8,2024.2,9.312499]
[1770996054461,4.93648117,2025.8,2024.3,1.824]
[1770996054462,1.47696388,2025.6,2024.3,1.824]
[1770996054997,0.24275753,2025.6,2024.4,27.75999887]
[1770996055277,0.24275753,2025.6,2024.5,14.765912]
[1770996055484,4.93525389,2026.3,2024.6,1.58437363]
[1770996055639,4.93525389,2026.3,2024.8,1.23468984]
[1770996056582,4.93525389,2026.3,2024.9,1.825]
[1770996057085,1.23359321,2026.6,2025.1,22.00477763]
[1770996057287,4.93370266,2026.9,2025.2,16.280263]
[1770996057288,1.23347148,2026.8,2025.2,16.280263]
[1770996057461,1.23347148,2026.8,2025.2,2.857554]
[1770996057659,1.23347148,2026.8,2025.2,3.152768]
[1770996057967,4.93370266,2026.9,2025.3,1.23438502]
[1770996058172,4.93388592,2027.0,2025.3,1.23438502]
[1770996058785,4.93388592,2027.0,2025.4,13.594795]
[1770996058956,0.002,2025.4,2025.3,1.23438502]
[1770996059153,7.966963,2026.5,2025.2,0.891]
[1770996059462,5.03628592,2027.0,2025.2,2.12544111]
[1770996059463,4.93388592,2027.0,2025.2,2.12544111]
[1770996059662,4.93388592,2027.0,2025.4,17.055459]
[1770996059871,0.002,2026.5,2025.6,1.23420221]
[1770996060078,0.002,2026.5,2025.7,1.823]
[1770996060275,0.002,2026.5,2025.6,1.23420221]
[1770996060486,0.002,2026.5,2025.6,2.16820221]
[1770996060700,0.002,2026.5,2025.3,1.23438502]
[1770996060861,0.002,2026.5,2025.2,0.933]
[1770996061959,0.002,2026.5,2025.3,1.23438502]
[1770996062156,0.002,2026.5,2025.4,3.478219]
[1770996062460,0.002,2026.5,2025.5,1.823]
[1770996062800,0.002,2026.5,2025.3,1.23438502]
[1770996063007,0.002,2026.5,2025.3,2.16738502]
[1770996063158,0.002,2026.5,2025.3,3.64675269]
[1770996063792,0.002,2026.5,2025.3,1.23438502]
[1770996063992,0.002,2026.5,2025.2,1.23441853]
[1770996064192,0.002,2026.5,2025.2,2.16841853]
[1770996064399,5.07434,2026.2,2024.4,4.93951404]
[1770996064696,10.38445226,2026.3,2024.7,0.934]
[1770996064908,6.789197,2026.1,2024.7,0.934]
[1770996065197,1.57208926,2026.2,2024.7,0.934]
[1770996065353,9.867884,2026.1,2024.7,0.934]
[1770996065565,1.57208926,2026.0,2024.7,0.934]
[1770996065770,11.179117,2025.8,2024.7,0.934]
[1770996066031,1.23414128,2025.7,2024.7,0.934]
[1770996066203,8.76277926,2025.6,2024.0,1.23517786]
[1770996066515,1.57208926,2025.6,2024.2,0.933]
[1770996066898,18.939773,2025.3,2023.3,3.067479]
[1770996067216,1.57208926,2025.2,2023.5,0.89]
[1770996067414,3.852058,2025.1,2023.5,0.89]
[1770996067571,1.57208926,2025.2,2023.5,0.89]
[1770996067770,13.749785,2025.1,2023.5,0.89]
[1770996067992,1.23462887,2024.9,2023.5,0.89]
[1770996068192,1.23461578,2025.0,2023.6,1.23542202]
[1770996069323,4.93781609,2025.2,2023.6,1.23542202]
[1770996069475,4.93781609,2025.2,2023.7,11.60939267]
[1770996069802,4.93781609,2025.2,2023.8,9.039308]
[1770996069973,4.93781609,2025.2,2023.8,9.44376]
[1770996070173,1.23426314,2025.5,2023.9,1.23523889]
[1770996070504,17.527004,2025.4,2024.0,0.932]
[1770996070718,1.23419287,2025.7,2024.3,8.128674]
[1770996070872,1.57208926,2026.0,2024.3,0.89]
[1770996071223,13.329318,2025.5,2023.9,1.23523889]
[1770996071379,2.76808926,2025.6,2024.1,0.932]
[1770996071575,17.29640726,2025.4,2024.1,0.932]
[1770996071884,1.57208926,2025.4,2024.1,0.932]
[1770996072078,1.23438502,2025.3,2024.1,0.932]
[1770996072402,23.21869,2025.1,2023.9,0.001]
[1770996072581,7.45032926,2025.1,2023.9,0.001]
[1770996072780,7.07639,2025.0,2023.9,0.001]
[1770996072995,1.57208926,2025.0,2023.9,1.23623852]
[1770996073204,1.23438502,2025.3,2023.9,1.23623852]
[1770996073403,1.23438502,2025.3,2024.0,0.33246861]
[1770996073711,1.23438502,2025.3,2023.9,0.001]
[1770996073712,21.47128,2025.0,2023.9,0.001]
[1770996073913,20.370566,2025.0,2023.9,0.001]
[1770996074214,6.51434,2024.5,2023.3,0.33246861]
[1770996074386,4.07134,2024.5,2023.1,0.932]
[1770996074587,2.59547,2024.5,2023.1,0.932]
[1770996075115,2.59547,2024.5,2022.8,0.001]
[1770996075116,1.67448926,2023.9,2022.8,0.001]
[1770996075303,1.67448926,2023.9,2022.2,4.94610749]
[1770996075304,1.57208926,2023.5,2022.2,0.001]
[1770996075510,5.207268,2023.2,2022.2,0.001]
[1770996075696,2.76908926,2023.3,2022.2,1.23726773]
[1770996075895,2.76908926,2023.3,2022.2,0.001]
[1770996076210,1.23572734,2023.1,2022.2,0.001]
[1770996076379,0.89,2023.5,2022.2,0.001]
[1770996076380,1.23548307,2023.5,2022.2,0.001]
[1770996076979,4.94193229,2023.7,2022.3,0.89]
[1770996076980,4.94153778,2023.7,2022.3,0.89]
[1770996077179,4.94153778,2023.7,2022.2,0.932]
[1770996077379,0.1024,2024.2,2022.3,7.06921]
[1770996077616,2.075451,2024.1,2022.3,1.47936767]
[1770996078325,1.23517786,2024.0,2022.4,1.23615506]
[1770996078615,1.23517786,2024.0,2022.5,1.47936767]
[1770996079028,1.23517786,2024.0,2022.5,14.31064367]
[1770996079188,1.23481181,2024.6,2022.9,1.66622391]
[1770996079385,1.23481181,2024.6,2023.0,10.815628]
[1770996079587,1.23481181,2024.6,2023.1,4.688768]
[1770996079818,1.23481181,2024.6,2023.1,1.47936767]
[1770996080398,1.57208926,2024.7,2022.7,1.23597172]
[1770996080623,1.57208926,2024.4,2022.8,0.93]
[1770996080932,6.80752026,2024.3,2022.8,0.93]
[1770996081139,1.57208926,2024.2,2022.8,0.93]
[1770996081305,1.196,2024.4,2022.8,0.93]
[1770996081306,2.53916,2024.3,2022.8,0.93]
[1770996081701,1.57208926,2024.7,2022.8,2.40936767]
[1770996081910,1.196,2024.6,2022.9,2.020014]
[1770996082102,1.196,2024.6,2022.8,2.40936767]
[1770996082103,2.05516,2024.5,2022.8,2.40936767]
[1770996082339,1.2349338,2024.4,2022.9,1.23584952]
[1770996082524,21.817683,2024.2,2022.9,1.23584952]
[1770996082707,13.93005,2024.1,2022.8,2.1658991]
[1770996082907,14.05132926,2024.1,2022.8,0.93]
[1770996083132,1.57208926,2024.1,2022.8,0.93]
[1770996083302,1.57208926,2024.1,2022.8,2.16590016]
[1770996083508,7.917145,2024.0,2022.8,0.93]
[1770996083701,1.196,2024.0,2022.8,2.165894]
[1770996084706,1.23523889,2023.9,2022.8,2.165894]
[1770996084928,1.23523889,2023.9,2023.0,0.001]
[1770996085525,1.57208926,2023.6,2022.8,0.001]
[1770996085716,1.57208926,2023.6,2022.2,0.001]
[1770996085717,4.799782,2023.4,2022.2,1.2372744]
[1770996085913,1.195,2023.3,2022.2,0.001]
[1770996086101,0.89,2023.4,2022.2,1.23724664]
[1770996086302,2.53263889,2023.9,2022.2,1.23724664]
[1770996086535,1.23523889,2023.9,2022.3,1.47936767]
[1770996086733,4.93974251,2024.5,2022.8,7.537248]
[1770996087012,2.76708926,2024.6,2022.8,4.49708167]
[1770996087313,1.2348728,2024.5,2022.9,4.053]
[1770996087515,4.93828172,2025.0,2023.2,23.76464293]
[1770996087705,4.93828172,2025.0,2023.4,3.252014]
[1770996088106,1.2345679,2025.0,2023.4,4.73138167]
[1770996088314,1.2345679,2025.0,2023.5,6.496014]
[1770996088528,1.2345679,2025.0,2023.6,0.93]
[1770996088927,1.2345679,2025.0,2023.7,2.16536097]
[1770996089127,1.2345679,2025.0,2023.7,0.93]
[1770996089328,2.80665716,2025.0,2023.7,0.93]
[1770996089532,1.2345679,2025.0,2023.7,0.93]
[1770996090050,2.42836736,2025.4,2023.9,7.90752067]
[1770996090222,2.42836736,2025.4,2023.9,1.47936767]
[1770996090613,3.88027631,2025.4,2023.7,0.93]
[1770996090940,2.68611116,2025.7,2023.9,10.70333057]
[1770996091146,5.39782,2025.5,2023.9,1.39409857]
[1770996091352,4.149,2025.5,2023.9,1.39409857]
[1770996091512,4.93681071,2025.6,2024.0,1.819]
[1770996091937,4.47931,2025.5,2024.0,1.819]
[1770996092313,1.45190895,2025.4,2023.5,4.94187502]
[1770996092510,1.45190895,2025.4,2023.7,1.39409857]
[1770996092747,1.23420221,2025.7,2024.0,6.33456593]
[1770996092918,11.67475895,2025.6,2024.1,1.23511684]
[1770996093124,11.67475895,2025.6,2024.1,2.16411684]
[1770996093125,1.45190895,2025.6,2024.1,2.16411684]
[1770996093534,2.163167,2025.6,2024.1,2.16411684]
[1770996094744,1.23420221,2025.7,2024.1,2.16411684]
[1770996094745,3.52262895,2025.5,2024.1,2.16411684]
[1770996095051,3.52262895,2025.5,2023.6,4.94120119]
[1770996095052,1.45190895,2025.2,2023.6,1.23542202]
[1770996095251,1.45190895,2024.9,2023.3,2.12555975]
[1770996095561,1.45190895,2024.6,2023.3,1.819]
[1770996095716,2.70988,2024.4,2023.3,3.05457748]
[1770996096031,1.192,2024.4,2023.3,2.12557748]
[1770996096653,1.192,2024.4,2023.3,2.12558569]
[1770996096890,1.23499481,2024.3,2023.3,0.89]
[1770996097250,1.23499481,2024.3,2023.3,0.928]
[1770996097420,1.23699481,2024.3,2023.3,0.928]
[1770996097842,0.002,2024.3,2023.3,0.928]
[1770996098446,1.193,2024.3,2023.0,1.23678843]
[1770996098634,1.48378015,2024.1,2023.0,0.001]
[1770996098835,1.23523889,2023.9,2023.0,0.001]
[1770996099331,19.62195715,2023.7,2022.2,0.928]
[1770996099529,1.38138015,2023.1,2022.0,0.001]
[1770996099754,0.1024,2023.0,2022.0,0.001]
[1770996099952,1.0583303,2022.9,2022.0,0.001]
[1770996100121,1.38138015,2022.9,2022.0,0.001]
[1770996100326,5.681584,2022.8,2022.0,0.001]
[1770996100559,5.39775,2022.8,2022.0,0.001]
[1770996100942,1.23597172,2022.7,2022.0,0.001]
[1770996101349,17.92155515,2022.6,2021.3,0.89]
[1770996101528,1.38138015,2022.6,2021.3,2.1268007]
[1770996101863,1.38138015,2022.4,2021.1,1.23791776]
[1770996102163,1.38138015,2022.4,2021.1,1.23792046]
[1770996102164,2.082,2022.3,2021.1,1.23792046]
[1770996102527,3.46338015,2022.3,2021.1,0.001]
[1770996102828,3.46338015,2022.3,2021.1,1.23791999]
[1770996103158,3.46338015,2022.3,2021.1,0.001]
[1770996103159,1.23627732,2022.2,2021.1,0.001]
[1770996103946,1.38138015,2021.8,2020.0,4.95045715]
[1770996104168,10.717211,2021.6,2020.0,5.87645715]
[1770996104437,18.951269,2021.5,2020.0,5.87645715]
[1770996104789,17.456634,2021.5,2020.0,5.87645715]
[1770996104946,2.27238015,2021.6,2020.0,5.87645715]
[1770996105252,1.23670541,2021.5,2020.0,5.87645715]
[1770996105637,2.61808556,2021.5,2020.0,2.16362376]
[1770996105844,16.36380515,2021.4,2020.0,0.926]
[1770996106039,19.666273,2021.2,2020.0,0.926]
[1770996106244,14.705956,2021.0,2019.8,2.1287416]
[1770996106438,0.891,2020.9,2019.8,0.891]
[1770996106657,5.116711,2020.8,2019.8,2.1287447]
[1770996106854,0.891,2020.9,2019.8,0.891]
[1770996107070,1.2371338,2020.8,2019.8,0.891]
[1770996107444,1.2371338,2020.8,2019.8,2.12873276]
[1770996107944,1.2371338,2020.8,2019.8,0.891]
[1770996108446,1.2371338,2020.8,2019.8,2.12874009]
[1770996108866,1.2371338,2020.8,2019.8,0.891]
[1770996109411,1.2371338,2020.8,2019.8,2.12874125]
[1770996109545,1.2371338,2020.8,2019.8,0.891]
[1770996109741,1.2371338,2020.8,2019.6,0.001]
[1770996109953,15.113998,2020.7,2019.6,0.001]
[1770996110288,1.194,2020.6,2019.6,1.23886763]
[1770996110489,1.194,2020.6,2020.0,0.001]
[1770996111102,1.23731749,2020.5,2020.0,0.001]
[1770996111272,2.4312827,2020.6,2020.0,0.001]
[1770996112766,1.38138015,2020.5,2019.8,0.001]
[1770996113194,1.23737873,2020.4,2019.8,0.001]
[1770996113696,2.43337873,2020.4,2019.8,0.001]
[1770996114073,4.94903296,2020.6,2019.8,0.001]
[1770996114074,1.196,2020.6,2019.8,0.001]
[1770996114667,1.38138015,2020.4,2019.6,0.001]
[1770996114869,9.157817,2020.5,2019.6,0.001]
[1770996115077,4.298137,2020.5,2019.6,0.001]
[1770996115376,11.929968,2020.5,2019.6,0.001]
[1770996115582,1.23737873,2020.4,2019.6,0.001]
[1770996115782,1.38138015,2021.0,2019.6,0.001]
[1770996115982,1.197,2020.9,2019.6,0.001]
[1770996116795,1.197,2020.9,2019.6,1.39011089]
[1770996117177,1.197,2020.9,2019.6,0.001]
[1770996117694,1.2371338,2020.8,2019.6,1.23886888]
[1770996118509,1.196,2020.7,2019.6,1.23886888]
[1770996119070,1.196,2020.7,2019.6,0.001]
[1770996119782,1.23731749,2020.5,2019.6,0.001]
[1770996119970,2.434304,2020.6,2019.6,0.001]
[1770996120177,1.197,2020.6,2019.6,0.001]
[1770996120376,2.43426333,2020.6,2019.7,0.32178486]
[1770996120611,2.43426333,2020.6,2019.6,0.001]
[1770996120811,15.265436,2020.5,2019.6,0.001]
[1770996121100,1.44634378,2020.5,2019.6,0.001]
[1770996121308,19.743655,2020.4,2019.6,0.001]
[1770996121608,7.464691,2020.4,2019.6,0.001]
[1770996121807,1.23743998,2020.3,2019.6,0.001]
[1770996122014,1.198,2020.2,2019.6,0.001]
[1770996122314,0.892,2020.9,2019.6,0.001]
[1770996122614,2.12909182,2020.9,2019.7,2.30475907]
[1770996122915,2.12909182,2020.9,2019.8,0.001]
[1770996123086,0.892,2020.9,2019.8,1.41375907]
[1770996123515,2.43495575,2021.1,2019.8,1.41375907]
[1770996123810,0.002,2020.4,2019.9,1.23768503]
[1770996124307,2.43495575,2021.1,2019.9,2.6504441]
[1770996124308,0.002,2020.6,2019.9,2.6504441]
[1770996124521,0.002,2020.6,2019.9,1.23768503]
[1770996125705,0.002,2020.6,2020.1,1.23756249]
[1770996126778,1.23681645,2021.4,2020.1,1.23756249]
[1770996127501,2.43475234,2021.5,2020.1,1.23756249]
[1770996127884,2.43475234,2021.5,2020.1,2.65032156]
[1770996128082,1.198,2021.5,2020.2,1.41275907]
[1770996128317,0.002,2021.5,2020.4,1.41275907]
[1770996128612,1.23872154,2021.5,2020.5,1.817]
[1770996128816,1.23870935,2021.5,2020.5,1.817]
[1770996129317,2.43470935,2021.5,2020.3,0.925]
[1770996129811,2.43470935,2021.5,2020.4,1.23737873]
[1770996130782,1.06129416,2021.4,2020.3,2.16240175]
[1770996130983,1.06129416,2021.4,2019.9,1.23766249]
[1770996130984,1.44634378,2021.2,2019.9,1.23766249]
[1770996131184,16.308694,2021.0,2019.8,1.23869735]
[1770996131417,5.02341956,2020.9,2019.8,1.23869735]
[1770996131719,1.06141938,2020.8,2019.8,1.23869735]
[1770996131886,2.29856927,2020.8,2019.8,0.001]
[1770996132083,1.197,2021.0,2019.8,1.41375907]
[1770996132292,2.55542927,2021.4,2020.0,1.41275907]
[1770996132591,1.06374057,2021.3,2020.1,0.926]
[1770996132789,1.23677287,2021.4,2020.1,0.926]
[1770996133086,0.002,2021.5,2020.3,1.41275907]
[1770996133988,1.3186564,2021.9,2020.5,1.41275907]
[1770996134193,1.23643713,2022.0,2020.4,1.23737873]
[1770996134497,1.06331653,2021.9,2020.5,1.817]
[1770996134797,2.43343713,2022.0,2020.5,3.22975907]
[1770996135008,1.06335135,2021.9,2020.4,1.23737873]
[1770996135315,15.292151,2021.6,2020.4,1.23737873]
[1770996135520,2.25935135,2021.5,2020.4,1.23737873]
[1770996135814,2.25935135,2021.5,2019.9,1.23768503]
[1770996135815,1.3186564,2021.1,2019.9,1.23768503]
[1770996136022,2.43301138,2021.0,2019.8,4.95174013]
[1770996136221,1.06335135,2020.9,2019.8,1.23874631]
[1770996136406,1.196,2021.0,2019.8,1.23874631]
[1770996136956,1.196,2021.0,2020.3,0.001]
[1770996136957,1.06347127,2020.9,2020.3,0.001]
[1770996137218,1.196,2021.0,2020.3,0.001]
[1770996137382,1.06355423,2020.9,2020.3,0.001]
[1770996137590,1.196,2021.0,2020.3,0.001]
[1770996137787,1.06348485,2020.9,2020.3,0.001]
[1770996138017,1.23707259,2020.9,2020.3,0.001]
[1770996138400,1.06361712,2020.8,2020.3,0.001]
[1770996138603,1.06361712,2020.7,2020.3,0.001]
[1770996138812,1.06361712,2020.6,2020.0,0.001]
[1770996139014,1.3186564,2020.8,2020.0,0.001]
[1770996139320,1.3186564,2020.6,2020.0,0.001]
[1770996139499,1.06380699,2020.6,2020.0,0.001]
[1770996139695,1.06380699,2020.5,2020.0,0.001]
[1770996139896,1.197,2020.6,2020.0,0.001]
[1770996140121,1.23731749,2020.5,2020.0,0.001]
[1770996140419,5.31089861,2020.4,2019.8,0.001]
[1770996140618,1.06398521,2020.3,2019.8,0.001]
[1770996140821,1.06398521,2020.2,2019.8,0.001]
[1770996141127,2.55597389,2020.5,2019.8,0.001]
[1770996141308,3.58053258,2020.4,2019.8,0.001]
[1770996141488,1.06387618,2020.3,2019.8,0.001]
[1770996142121,1.23750123,2020.2,2019.8,0.001]